[Event "*** Titled Tuesday Blitz"]
[Site "Chess.com"]
[Date "2021.04.20"]
[Round "3"]
[White "AlexPapasimakopoulos"]
[Black "noblerone"]
[Result "1-0"]
[WhiteElo "2605"]
[BlackElo "2401"]
[TimeControl "180+1"]
[EndTime "10:26:18 PDT"]
[Termination "AlexPapasimakopoulos won by resignation"]

1. d4 {[%clk 0:03:00.9]} 1... d5 {[%clk 0:02:59.5]} 2. c4 {[%clk 0:03:00.3]}
2... c6 {[%clk 0:02:59.1]} 3. cxd5 {[%clk 0:03:00.4]} 3... cxd5 {[%clk
0:02:58.7]} 4. Bf4 {[%clk 0:03:01.1]} 4... Nf6 {[%clk 0:02:58.3]} 5. Nc3 {[%clk
0:03:01.1]} 5... Nc6 {[%clk 0:02:57.9]} 6. e3 {[%clk 0:03:01.5]} 6... a6 {[%clk
0:02:58.3]} 7. Bd3 {[%clk 0:03:01.6]} 7... Bg4 {[%clk 0:02:56]} 8. Nge2 {[%clk
0:03:01.6]} 8... e6 {[%clk 0:02:55.4]} 9. O-O {[%clk 0:03:02.1]} 9... Bd6 {[%clk
0:02:54]} 10. f3 {[%clk 0:03:02.7]} 10... Bh5 {[%clk 0:02:52]} 11. Rc1 {[%clk
0:03:03.3]} 11... O-O {[%clk 0:02:49.8]} 12. Na4 {[%clk 0:03:03.9]} 12... Rc8
{[%clk 0:02:45.7]} 13. Nc5 {[%clk 0:03:03.8]} 13... Bxc5 {[%clk 0:02:34.9]} 14.
Rxc5 {[%clk 0:03:04.7]} 14... Bg6 {[%clk 0:02:31]} 15. Bxg6 {[%clk 0:02:59.4]}
15... hxg6 {[%clk 0:02:31.9]} 16. Qa4 {[%clk 0:02:56.4]} 16... Nh5 {[%clk
0:02:27.4]} 17. Rfc1 {[%clk 0:02:54.5]} 17... Nxf4 {[%clk 0:02:27.3]} 18. Nxf4
{[%clk 0:02:55.4]} 18... Qb6 {[%clk 0:02:21]} 19. Nd3 {[%clk 0:02:50.7]} 19...
Rfd8 {[%clk 0:01:40.4]} 20. b4 {[%clk 0:02:45.8]} 20... Kh7 {[%clk 0:01:37.6]}
21. b5 {[%clk 0:02:36.5]} 21... axb5 {[%clk 0:01:28.4]} 22. Rxb5 {[%clk
0:02:37.4]} 22... Qc7 {[%clk 0:01:24.7]} 23. Qb3 {[%clk 0:02:23.8]} 23... Ra8
{[%clk 0:01:07.2]} 24. Rxb7 {[%clk 0:02:21.1]} 24... Qa5 {[%clk 0:01:00]} 25.
Rxc6 {[%clk 0:02:20.5]} 25... Qd2 {[%clk 0:00:56.4]} 26. h4 {[%clk 0:01:44]}
26... Rxa2 {[%clk 0:00:46.2]} 27. Nf4 {[%clk 0:01:36.8]} 27... Qf2+ {[%clk
0:00:26.7]} 28. Kh2 {[%clk 0:01:33.4]} 28... Qxh4+ {[%clk 0:00:16.2]} 29. Nh3
{[%clk 0:01:33]} 29... Rda8 {[%clk 0:00:14.3]} 30. Rxf7 {[%clk 0:01:24.5]} 30...
Re2 {[%clk 0:00:11.6]} 31. Rcc7 {[%clk 0:01:20.4]} 31... Rg8 {[%clk 0:00:10.3]}
32. Qb7 {[%clk 0:01:16.5]} 32... Rxg2+ {[%clk 0:00:05.7]} 33. Kxg2 {[%clk
0:01:16.1]} 1-0

[Event "*** Titled Tuesday Blitz"]
[Site "Chess.com"]
[Date "2021.04.20"]
[Round "3"]
[White "mac0504"]
[Black "FeketeBarika"]
[Result "1-0"]
[WhiteElo "2580"]
[BlackElo "2269"]
[TimeControl "180+1"]
[EndTime "10:26:24 PDT"]
[Termination "mac0504 won by resignation"]

1. e4 {[%clk 0:03:00.9]} 1... e6 {[%clk 0:02:42.3]} 2. d4 {[%clk 0:03:00.5]}
2... d5 {[%clk 0:02:37.2]} 3. Nd2 {[%clk 0:03:00.8]} 3... Be7 {[%clk 0:02:28.2]}
4. Ngf3 {[%clk 0:03:00.2]} 4... Nf6 {[%clk 0:02:24]} 5. e5 {[%clk 0:03:00.2]}
5... Nfd7 {[%clk 0:02:24.2]} 6. Bd3 {[%clk 0:03:00.8]} 6... c5 {[%clk
0:02:24.4]} 7. c3 {[%clk 0:03:01.5]} 7... b6 {[%clk 0:02:24.4]} 8. O-O {[%clk
0:03:00.6]} 8... Ba6 {[%clk 0:02:22.9]} 9. Bxa6 {[%clk 0:02:55.1]} 9... Nxa6
{[%clk 0:02:23.8]} 10. Qe2 {[%clk 0:02:55.6]} 10... Nab8 {[%clk 0:02:23.5]} 11.
Ne1 {[%clk 0:02:53.2]} 11... Nc6 {[%clk 0:02:23.1]} 12. f4 {[%clk 0:02:53.6]}
12... cxd4 {[%clk 0:02:22.9]} 13. Nef3 {[%clk 0:01:47.4]} 13... dxc3 {[%clk
0:02:21.1]} 14. bxc3 {[%clk 0:01:48.3]} 14... Rc8 {[%clk 0:02:19.4]} 15. Nd4
{[%clk 0:01:42.7]} 15... Bc5 {[%clk 0:02:14.4]} 16. Nf3 {[%clk 0:01:40.2]} 16...
O-O {[%clk 0:02:14]} 17. Be3 {[%clk 0:01:37.5]} 17... Na5 {[%clk 0:02:11.8]} 18.
f5 {[%clk 0:01:33.3]} 18... exf5 {[%clk 0:02:09.4]} 19. Nxf5 {[%clk 0:01:28.5]}
19... Bxe3+ {[%clk 0:02:07.2]} 20. Qxe3 {[%clk 0:01:29.4]} 20... Nc4 {[%clk
0:02:06.7]} 21. Qf4 {[%clk 0:01:25.3]} 21... Nc5 {[%clk 0:02:01.1]} 22. Qg4
{[%clk 0:01:25.7]} 22... Ne6 {[%clk 0:01:59.7]} 23. Rae1 {[%clk 0:01:17.7]}
23... Kh8 {[%clk 0:01:58.9]} 24. Re2 {[%clk 0:01:06.7]} 24... Qc7 {[%clk
0:01:51.5]} 25. Rd1 {[%clk 0:01:04]} 25... Rcd8 {[%clk 0:01:50.2]} 26. Qh4
{[%clk 0:01:00.4]} 26... f6 {[%clk 0:01:25.1]} 27. exf6 {[%clk 0:00:58.4]} 27...
Rxf6 {[%clk 0:01:25.2]} 28. Rxe6 {[%clk 0:00:45.8]} 28... Rxe6 {[%clk
0:01:21.5]} 29. Ng5 {[%clk 0:00:44.3]} 29... Rh6 {[%clk 0:00:44.1]} 30. Nxh6
{[%clk 0:00:41.5]} 30... gxh6 {[%clk 0:00:36.3]} 31. Nf7+ {[%clk 0:00:38.3]}
31... Qxf7 {[%clk 0:00:36.4]} 32. Qxd8+ {[%clk 0:00:38.6]} 32... Kg7 {[%clk
0:00:36.5]} 33. Qxd5 {[%clk 0:00:38.7]} 1-0

[Event "*** Titled Tuesday Blitz"]
[Site "Chess.com"]
[Date "2021.04.20"]
[Round "3"]
[White "Aslanov_Umid"]
[Black "chesslh19"]
[Result "1-0"]
[WhiteElo "2457"]
[BlackElo "2229"]
[TimeControl "180+1"]
[EndTime "10:26:27 PDT"]
[Termination "Aslanov_Umid won on time"]

1. e4 {[%clk 0:03:00.9]} 1... e5 {[%clk 0:03:00]} 2. Nf3 {[%clk 0:03:01]} 2...
Nf6 {[%clk 0:03:00.2]} 3. d4 {[%clk 0:03:00.6]} 3... exd4 {[%clk 0:03:00.1]} 4.
e5 {[%clk 0:03:01.5]} 4... Ne4 {[%clk 0:03:00.6]} 5. Qxd4 {[%clk 0:03:01.2]}
5... d5 {[%clk 0:03:01.2]} 6. exd6 {[%clk 0:03:02.1]} 6... Nxd6 {[%clk
0:03:01.9]} 7. Nc3 {[%clk 0:03:02.1]} 7... Nc6 {[%clk 0:03:01.5]} 8. Qf4 {[%clk
0:03:02.6]} 8... Nf5 {[%clk 0:03:02.2]} 9. Bb5 {[%clk 0:02:56.1]} 9... Bd6
{[%clk 0:02:57.7]} 10. Qc4 {[%clk 0:02:33.2]} 10... O-O {[%clk 0:02:46.1]} 11.
O-O {[%clk 0:02:29.5]} 11... Be6 {[%clk 0:02:34.3]} 12. Qe4 {[%clk 0:02:26.8]}
12... Nfd4 {[%clk 0:01:58.6]} 13. Bxc6 {[%clk 0:01:52.4]} 13... Nxc6 {[%clk
0:01:35.2]} 14. Ng5 {[%clk 0:01:40.7]} 14... g6 {[%clk 0:00:41]} 15. Nxe6 {[%clk
0:01:38.1]} 15... fxe6 {[%clk 0:00:39]} 16. Qxe6+ {[%clk 0:01:38.8]} 16... Kg7
{[%clk 0:00:33.5]} 17. Qh3 {[%clk 0:01:34.4]} 17... Kg8 {[%clk 0:00:28.9]} 18.
Bh6 {[%clk 0:01:28.4]} 18... Rf7 {[%clk 0:00:26.8]} 19. Rad1 {[%clk 0:01:23.4]}
19... Qc8 {[%clk 0:00:17.8]} 20. Qh4 {[%clk 0:01:13.7]} 20... Qf5 {[%clk
0:00:14.2]} 21. Ne4 {[%clk 0:00:58]} 21... Be7 {[%clk 0:00:08.8]} 22. Bg5 {[%clk
0:00:57.4]} 22... Bxg5 {[%clk 0:00:03.8]} 23. Nxg5 {[%clk 0:00:58]} 23... Rg7
{[%clk 0:00:03.4]} 24. Qc4+ {[%clk 0:00:58]} 24... Kf8 {[%clk 0:00:02.1]} 25.
Ne6+ {[%clk 0:00:57.8]} 1-0

[Event "*** Titled Tuesday Blitz"]
[Site "Chess.com"]
[Date "2021.04.20"]
[Round "3"]
[White "DrMamaliga"]
[Black "chessmadara"]
[Result "1-0"]
[WhiteElo "2355"]
[BlackElo "2171"]
[TimeControl "180+1"]
[EndTime "10:26:30 PDT"]
[Termination "DrMamaliga won by resignation"]

1. b3 {[%clk 0:02:01.5]} 1... Nf6 {[%clk 0:02:57.6]} 2. Bb2 {[%clk 0:02:02.4]}
2... g6 {[%clk 0:02:57]} 3. e3 {[%clk 0:02:02.7]} 3... Bg7 {[%clk 0:02:55.9]} 4.
d4 {[%clk 0:02:03.6]} 4... O-O {[%clk 0:02:54.9]} 5. Bd3 {[%clk 0:02:04.5]} 5...
d6 {[%clk 0:02:54.7]} 6. Ne2 {[%clk 0:02:05.4]} 6... e5 {[%clk 0:02:52.2]} 7.
O-O {[%clk 0:02:05.7]} 7... Nbd7 {[%clk 0:02:47.7]} 8. c4 {[%clk 0:02:05.5]}
8... Re8 {[%clk 0:02:29]} 9. Bc2 {[%clk 0:02:04.4]} 9... Nf8 {[%clk 0:02:27.1]}
10. Nbc3 {[%clk 0:02:03.8]} 10... exd4 {[%clk 0:02:20.8]} 11. exd4 {[%clk
0:02:03.8]} 11... d5 {[%clk 0:02:20.8]} 12. c5 {[%clk 0:02:03.4]} 12... c6
{[%clk 0:02:02]} 13. Qd2 {[%clk 0:02:02.5]} 13... Qc7 {[%clk 0:01:43.8]} 14.
Rae1 {[%clk 0:02:01.3]} 14... Bd7 {[%clk 0:01:28.6]} 15. b4 {[%clk 0:02:00.7]}
15... Ne6 {[%clk 0:01:19]} 16. a4 {[%clk 0:01:53.9]} 16... h5 {[%clk 0:01:17.5]}
17. b5 {[%clk 0:01:52.3]} 17... Kh7 {[%clk 0:01:17.6]} 18. h3 {[%clk 0:01:47]}
18... Bh6 {[%clk 0:01:16.9]} 19. Qd1 {[%clk 0:01:44.2]} 19... Nf4 {[%clk
0:01:15.1]} 20. Bc1 {[%clk 0:01:40.8]} 20... Nxg2 {[%clk 0:00:50.7]} 21. Kxg2
{[%clk 0:01:35.5]} 21... Bxh3+ {[%clk 0:00:50.3]} 22. Kxh3 {[%clk 0:01:20.3]}
22... Qd7+ {[%clk 0:00:50.4]} 23. Kg2 {[%clk 0:01:19.8]} 23... Qg4+ {[%clk
0:00:50.2]} 24. Ng3 {[%clk 0:01:20]} 24... Qd7 {[%clk 0:00:19]} 25. Bxh6 {[%clk
0:01:09.2]} 25... Kxh6 {[%clk 0:00:19.9]} 26. Qd2+ {[%clk 0:01:10]} 26... Kh7
{[%clk 0:00:19.5]} 27. Qf4 {[%clk 0:01:10]} 27... Ng4 {[%clk 0:00:16.9]} 28. f3
{[%clk 0:01:01.9]} 28... Nh6 {[%clk 0:00:11.7]} 29. Nxh5 {[%clk 0:00:55.2]} 1-0

[Event "*** Titled Tuesday Blitz"]
[Site "Chess.com"]
[Date "2021.04.20"]
[Round "3"]
[White "RD4ever"]
[Black "chegueps"]
[Result "1-0"]
[WhiteElo "2860"]
[BlackElo "2461"]
[TimeControl "180+1"]
[EndTime "10:26:32 PDT"]
[Termination "RD4ever won on time"]

1. d4 {[%clk 0:03:00.9]} 1... f5 {[%clk 0:02:58.5]} 2. g3 {[%clk 0:02:58.2]}
2... Nf6 {[%clk 0:02:57.8]} 3. Bg2 {[%clk 0:02:58.1]} 3... g6 {[%clk 0:02:58.4]}
4. c3 {[%clk 0:02:58]} 4... Bg7 {[%clk 0:02:59.3]} 5. Qb3 {[%clk 0:02:57.7]}
5... d5 {[%clk 0:02:53.7]} 6. Nd2 {[%clk 0:02:54.9]} 6... O-O {[%clk 0:02:51.5]}
7. Ndf3 {[%clk 0:02:54.1]} 7... c6 {[%clk 0:02:43.6]} 8. Nh3 {[%clk 0:02:52]}
8... Ne4 {[%clk 0:02:38]} 9. Nf4 {[%clk 0:02:51.2]} 9... Qb6 {[%clk 0:02:21.3]}
10. h4 {[%clk 0:02:46]} 10... Na6 {[%clk 0:01:48.7]} 11. h5 {[%clk 0:02:37.3]}
11... g5 {[%clk 0:01:44.6]} 12. h6 {[%clk 0:02:37]} 12... Bf6 {[%clk 0:01:43.1]}
13. Nd3 {[%clk 0:02:33.7]} 13... Nc7 {[%clk 0:01:28.4]} 14. Nfe5 {[%clk
0:02:32.4]} 14... Nb5 {[%clk 0:01:18]} 15. g4 {[%clk 0:02:08.8]} 15... Nbd6
{[%clk 0:01:03.9]} 16. f3 {[%clk 0:01:47.3]} 16... Ng3 {[%clk 0:00:53.1]} 17.
Rh3 {[%clk 0:01:47]} 17... f4 {[%clk 0:00:53.3]} 18. Qxb6 {[%clk 0:01:42.5]}
18... axb6 {[%clk 0:00:52.8]} 19. Nxf4 {[%clk 0:01:43.1]} 19... gxf4 {[%clk
0:00:43.5]} 20. Bxf4 {[%clk 0:01:44]} 20... Nxe2 {[%clk 0:00:28.4]} 21. Kxe2
{[%clk 0:01:43.4]} 21... b5 {[%clk 0:00:24.5]} 22. a3 {[%clk 0:01:42.4]} 22...
Be6 {[%clk 0:00:17.7]} 23. Re1 {[%clk 0:01:39.9]} 23... Kh8 {[%clk 0:00:16.6]}
24. Kd1 {[%clk 0:01:39.2]} 24... Bg8 {[%clk 0:00:13.9]} 25. Nd7 {[%clk
0:01:36.9]} 25... Nc4 {[%clk 0:00:09.6]} 26. Nxf8 {[%clk 0:01:33.5]} 26... Rxf8
{[%clk 0:00:07.8]} 27. Kc1 {[%clk 0:01:33.7]} 27... Na5 {[%clk 0:00:03.2]} 28.
Be5 {[%clk 0:01:31.2]} 28... Bxe5 {[%clk 0:00:03.1]} 29. Rxe5 {[%clk 0:01:32.1]}
29... Nc4 {[%clk 0:00:03.8]} 30. Rxe7 {[%clk 0:01:32.1]} 30... Nd6 {[%clk
0:00:03.9]} 31. Rh5 {[%clk 0:01:29.3]} 31... Bf7 {[%clk 0:00:01.9]} 32. Rhe5
{[%clk 0:01:29]} 32... Bg6 {[%clk 0:00:01.8]} 33. R5e6 {[%clk 0:01:23]} 33...
Nc4 {[%clk 0:00:01.6]} 34. f4 {[%clk 0:01:22.9]} 34... Bd3 {[%clk 0:00:01.4]}
35. Re8 {[%clk 0:01:19.7]} 35... Rg8 {[%clk 0:00:01.2]} 36. g5 {[%clk
0:01:18.5]} 1-0

[Event "*** Titled Tuesday Blitz"]
[Site "Chess.com"]
[Date "2021.04.20"]
[Round "3"]
[White "grzechu96"]
[Black "Salem-AR"]
[Result "1-0"]
[WhiteElo "2675"]
[BlackElo "2952"]
[TimeControl "180+1"]
[EndTime "10:26:33 PDT"]
[Termination "grzechu96 won by resignation"]

1. e4 {[%clk 0:03:00.9]} 1... c6 {[%clk 0:02:59.7]} 2. Nc3 {[%clk 0:02:55]} 2...
d5 {[%clk 0:03:00.4]} 3. Nf3 {[%clk 0:02:55.5]} 3... Bg4 {[%clk 0:03:00.1]} 4.
h3 {[%clk 0:02:55.4]} 4... Bxf3 {[%clk 0:03:00.8]} 5. Qxf3 {[%clk 0:02:56.3]}
5... e6 {[%clk 0:03:00.7]} 6. d3 {[%clk 0:02:56.1]} 6... Nd7 {[%clk 0:02:45.5]}
7. Be2 {[%clk 0:02:56.1]} 7... Bd6 {[%clk 0:02:43.1]} 8. d4 {[%clk 0:02:55.9]}
8... Ne7 {[%clk 0:02:42.9]} 9. O-O {[%clk 0:02:53.1]} 9... O-O {[%clk
0:02:42.3]} 10. Bd3 {[%clk 0:02:53.2]} 10... f5 {[%clk 0:02:41.3]} 11. e5 {[%clk
0:02:36.8]} 11... Bc7 {[%clk 0:02:40.5]} 12. Ne2 {[%clk 0:02:37.3]} 12... Ng6
{[%clk 0:02:32.7]} 13. Qh5 {[%clk 0:02:14.3]} 13... c5 {[%clk 0:02:21.4]} 14. c3
{[%clk 0:02:06.7]} 14... Bb6 {[%clk 0:02:20.7]} 15. Bg5 {[%clk 0:01:03.7]} 15...
Qe8 {[%clk 0:02:13.7]} 16. Qf3 {[%clk 0:00:49.4]} 16... Rc8 {[%clk 0:02:00.7]}
17. Rac1 {[%clk 0:00:39.1]} 17... h6 {[%clk 0:01:58.5]} 18. Bd2 {[%clk
0:00:34.8]} 18... Qe7 {[%clk 0:01:39.9]} 19. Qg3 {[%clk 0:00:32.3]} 19... Qf7
{[%clk 0:01:18.4]} 20. h4 {[%clk 0:00:27.6]} 20... Kh8 {[%clk 0:01:10.3]} 21. h5
{[%clk 0:00:26.9]} 21... Ne7 {[%clk 0:01:10.6]} 22. Qh4 {[%clk 0:00:26.9]} 22...
Rg8 {[%clk 0:01:03]} 23. Be3 {[%clk 0:00:25.8]} 23... Nf8 {[%clk 0:00:49.3]} 24.
Nf4 {[%clk 0:00:23.2]} 24... Nh7 {[%clk 0:00:44.2]} 25. Qxe7 {[%clk 0:00:22.8]}
1-0

[Event "*** Titled Tuesday Blitz"]
[Site "Chess.com"]
[Date "2021.04.20"]
[Round "3"]
[White "ri4mi"]
[Black "pifion"]
[Result "0-1"]
[WhiteElo "2345"]
[BlackElo "2555"]
[TimeControl "180+1"]
[EndTime "10:26:33 PDT"]
[Termination "pifion won by resignation"]

1. e4 {[%clk 0:03:00.9]} 1... e6 {[%clk 0:02:59.4]} 2. d4 {[%clk 0:02:59.6]}
2... d5 {[%clk 0:02:59.8]} 3. Nc3 {[%clk 0:03:00.5]} 3... Bb4 {[%clk 0:02:58.9]}
4. e5 {[%clk 0:03:00.8]} 4... c5 {[%clk 0:02:56.7]} 5. a3 {[%clk 0:03:01]} 5...
Bxc3+ {[%clk 0:02:56.6]} 6. bxc3 {[%clk 0:03:01.9]} 6... Ne7 {[%clk 0:02:56.7]}
7. Qg4 {[%clk 0:03:01.8]} 7... O-O {[%clk 0:02:55.7]} 8. h4 {[%clk 0:03:00.3]}
8... Nbc6 {[%clk 0:02:52.4]} 9. h5 {[%clk 0:02:52.2]} 9... Qa5 {[%clk
0:02:49.3]} 10. Rh3 {[%clk 0:02:46]} 10... cxd4 {[%clk 0:02:46.3]} 11. Bh6
{[%clk 0:02:35.8]} 11... Ng6 {[%clk 0:01:46.5]} 12. hxg6 {[%clk 0:02:33.7]}
12... fxg6 {[%clk 0:01:47.4]} 13. Bd2 {[%clk 0:02:16.7]} 13... dxc3 {[%clk
0:01:41.7]} 14. Bxc3 {[%clk 0:02:13.3]} 14... Qc7 {[%clk 0:01:41.6]} 15. Nf3
{[%clk 0:02:09.3]} 15... Ne7 {[%clk 0:01:31.2]} 16. Ng5 {[%clk 0:01:33.4]} 16...
h6 {[%clk 0:01:30]} 17. Nxe6 {[%clk 0:00:55.3]} 17... Qc6 {[%clk 0:01:27.7]} 18.
Qh4 {[%clk 0:00:32.6]} 18... Bxe6 {[%clk 0:01:24.1]} 19. Rg3 {[%clk 0:00:23.2]}
19... Nf5 {[%clk 0:01:22]} 20. Qb4 {[%clk 0:00:21.1]} 20... Nxg3 {[%clk
0:01:21.3]} 21. fxg3 {[%clk 0:00:22]} 21... Rac8 {[%clk 0:01:18.1]} 22. Bd4
{[%clk 0:00:20.1]} 22... Qxc2 {[%clk 0:01:17.3]} 23. Qe7 {[%clk 0:00:16.9]}
23... Qe4+ {[%clk 0:01:15.6]} 24. Be2 {[%clk 0:00:16.7]} 24... Qxd4 {[%clk
0:01:14.4]} 25. Qxe6+ {[%clk 0:00:16.5]} 25... Kh7 {[%clk 0:01:14.6]} 26. Rd1
{[%clk 0:00:15.9]} 26... Qg1+ {[%clk 0:00:58]} 27. Kd2 {[%clk 0:00:15.8]} 27...
Qd4+ {[%clk 0:00:58.5]} 28. Ke1 {[%clk 0:00:14.4]} 28... Qc3+ {[%clk 0:00:59.1]}
29. Rd2 {[%clk 0:00:13.9]} 29... Qxg3+ {[%clk 0:00:58.3]} 30. Kd1 {[%clk
0:00:13.6]} 30... Qb3+ {[%clk 0:00:58]} 31. Ke1 {[%clk 0:00:14.1]} 31... Rc1+
{[%clk 0:00:58]} 32. Bd1 {[%clk 0:00:13.9]} 32... Qe3+ {[%clk 0:00:57.2]} 33.
Re2 {[%clk 0:00:14.3]} 33... Rxd1+ {[%clk 0:00:56.9]} 34. Kxd1 {[%clk
0:00:14.5]} 34... Rf1+ {[%clk 0:00:56.8]} 0-1

[Event "*** Titled Tuesday Blitz"]
[Site "Chess.com"]
[Date "2021.04.20"]
[Round "3"]
[White "not_najdorfs_player"]
[Black "LamaChampetre"]
[Result "1-0"]
[WhiteElo "2369"]
[BlackElo "2186"]
[TimeControl "180+1"]
[EndTime "10:26:37 PDT"]
[Termination "not_najdorfs_player won by resignation"]

1. e4 {[%clk 0:03:00.9]} 1... c5 {[%clk 0:02:59.7]} 2. Nf3 {[%clk 0:03:00.4]}
2... g6 {[%clk 0:03:00.1]} 3. d4 {[%clk 0:02:50.2]} 3... cxd4 {[%clk 0:03:01]}
4. Nxd4 {[%clk 0:02:50.5]} 4... Nc6 {[%clk 0:03:01.2]} 5. c4 {[%clk 0:02:45.3]}
5... Bg7 {[%clk 0:02:55.9]} 6. Be3 {[%clk 0:02:44.3]} 6... Nf6 {[%clk
0:02:54.7]} 7. f3 {[%clk 0:02:42.9]} 7... Nxd4 {[%clk 0:02:44.6]} 8. Bxd4 {[%clk
0:02:42.2]} 8... d6 {[%clk 0:02:44.6]} 9. Nc3 {[%clk 0:02:42.1]} 9... O-O {[%clk
0:02:43.8]} 10. Be2 {[%clk 0:02:34.4]} 10... Qa5 {[%clk 0:02:43.4]} 11. O-O
{[%clk 0:02:30.9]} 11... Be6 {[%clk 0:02:43.3]} 12. b3 {[%clk 0:02:27]} 12...
Rfc8 {[%clk 0:02:40.9]} 13. Qd3 {[%clk 0:02:14.3]} 13... a6 {[%clk 0:02:29.7]}
14. a3 {[%clk 0:02:07.6]} 14... Nd7 {[%clk 0:02:18.5]} 15. b4 {[%clk 0:02:02.1]}
15... Bxd4+ {[%clk 0:02:02]} 16. Qxd4 {[%clk 0:01:59.9]} 16... Qb6 {[%clk
0:02:01.8]} 17. Rfd1 {[%clk 0:01:58.5]} 17... Qxd4+ {[%clk 0:01:55.2]} 18. Rxd4
{[%clk 0:01:58.4]} 18... Ne5 {[%clk 0:01:51.4]} 19. Nd5 {[%clk 0:01:41.1]} 19...
Bxd5 {[%clk 0:01:50]} 20. exd5 {[%clk 0:01:40.6]} 20... Rc7 {[%clk 0:01:30.5]}
21. f4 {[%clk 0:01:36.4]} 21... Nd7 {[%clk 0:01:28.4]} 22. a4 {[%clk 0:01:36]}
22... Rac8 {[%clk 0:01:22.2]} 23. a5 {[%clk 0:01:35.4]} 23... Kf8 {[%clk
0:00:59.8]} 24. h4 {[%clk 0:01:27.6]} 24... h5 {[%clk 0:00:58.4]} 25. Bd3 {[%clk
0:01:17.1]} 25... b5 {[%clk 0:00:41.4]} 26. cxb5 {[%clk 0:01:15]} 26... axb5
{[%clk 0:00:37.5]} 27. Bxb5 {[%clk 0:01:14.3]} 27... Nf6 {[%clk 0:00:35.8]} 28.
Bc6 {[%clk 0:01:13]} 28... Nd7 {[%clk 0:00:26.9]} 29. b5 {[%clk 0:01:11.3]}
29... Nc5 {[%clk 0:00:18.8]} 30. a6 {[%clk 0:01:07.2]} 30... e5 {[%clk
0:00:09.6]} 31. fxe5 {[%clk 0:01:05.7]} 31... dxe5 {[%clk 0:00:09.7]} 32. Rc4
{[%clk 0:01:04.8]} 32... Nd7 {[%clk 0:00:06.2]} 33. Bxd7 {[%clk 0:01:03.3]}
33... Rxc4 {[%clk 0:00:05.7]} 34. Bxc8 {[%clk 0:01:03.7]} 34... Rxc8 {[%clk
0:00:06.6]} 35. a7 {[%clk 0:01:03.9]} 35... Ra8 {[%clk 0:00:06.2]} 36. b6 {[%clk
0:01:04.4]} 36... Ke7 {[%clk 0:00:07.1]} 37. b7 {[%clk 0:01:04.8]} 1-0

[Event "*** Titled Tuesday Blitz"]
[Site "Chess.com"]
[Date "2021.04.20"]
[Round "3"]
[White "ChelsieMonica"]
[Black "esrosenberg"]
[Result "1-0"]
[WhiteElo "2403"]
[BlackElo "2195"]
[TimeControl "180+1"]
[EndTime "10:26:40 PDT"]
[Termination "ChelsieMonica won on time"]

1. c4 {[%clk 0:03:00.9]} 1... e5 {[%clk 0:02:59.7]} 2. Nc3 {[%clk 0:03:00.1]}
2... Bb4 {[%clk 0:03:00.2]} 3. g3 {[%clk 0:02:59.2]} 3... Bxc3 {[%clk
0:03:00.3]} 4. bxc3 {[%clk 0:02:58.7]} 4... Nf6 {[%clk 0:02:59.9]} 5. Bg2 {[%clk
0:02:58.6]} 5... O-O {[%clk 0:02:59.7]} 6. Nf3 {[%clk 0:02:58.9]} 6... Nc6
{[%clk 0:02:59.4]} 7. O-O {[%clk 0:02:58.9]} 7... e4 {[%clk 0:02:54.1]} 8. Nd4
{[%clk 0:02:58.6]} 8... Ne5 {[%clk 0:02:45]} 9. d3 {[%clk 0:02:57]} 9... exd3
{[%clk 0:02:42.1]} 10. exd3 {[%clk 0:02:57.9]} 10... d6 {[%clk 0:02:36.9]} 11.
f4 {[%clk 0:02:56.8]} 11... Bg4 {[%clk 0:02:11.5]} 12. Qc2 {[%clk 0:02:55.2]}
12... Nc6 {[%clk 0:02:03.2]} 13. Nxc6 {[%clk 0:02:50.7]} 13... bxc6 {[%clk
0:02:04.1]} 14. Bxc6 {[%clk 0:02:50]} 14... Rb8 {[%clk 0:02:04.6]} 15. Bf3
{[%clk 0:02:49.2]} 15... Bxf3 {[%clk 0:01:59.4]} 16. Rxf3 {[%clk 0:02:50.1]}
16... Re8 {[%clk 0:01:58.6]} 17. Be3 {[%clk 0:02:45.1]} 17... Qd7 {[%clk
0:01:43.3]} 18. Bxa7 {[%clk 0:02:41]} 18... Rb7 {[%clk 0:01:29.1]} 19. Bd4
{[%clk 0:02:32.6]} 19... Ng4 {[%clk 0:01:13.9]} 20. h3 {[%clk 0:02:31.3]} 20...
Nh6 {[%clk 0:01:12.1]} 21. g4 {[%clk 0:02:31.6]} 21... Reb8 {[%clk 0:00:59.6]}
22. Qg2 {[%clk 0:02:21]} 22... c5 {[%clk 0:00:40.1]} 23. Be3 {[%clk 0:02:14.4]}
23... Qa4 {[%clk 0:00:26.3]} 24. f5 {[%clk 0:02:09.2]} 24... Rb2 {[%clk
0:00:18.2]} 25. Rf2 {[%clk 0:02:08.4]} 25... Rb1+ {[%clk 0:00:17.5]} 26. Rxb1
{[%clk 0:02:07.4]} 26... Rxb1+ {[%clk 0:00:17.2]} 27. Kh2 {[%clk 0:02:08]} 27...
Re1 {[%clk 0:00:14.6]} 28. Bd2 {[%clk 0:01:54.5]} 28... Re8 {[%clk 0:00:13.4]}
29. g5 {[%clk 0:01:54.3]} 29... Nxf5 {[%clk 0:00:11.2]} 30. Rxf5 {[%clk
0:01:53.9]} 30... Qxa2 {[%clk 0:00:11.1]} 31. h4 {[%clk 0:01:51.6]} 31... Qb1
{[%clk 0:00:09.8]} 32. Rf3 {[%clk 0:01:51]} 32... Qd1 {[%clk 0:00:08.9]} 33. Re3
{[%clk 0:01:45.8]} 33... Rf8 {[%clk 0:00:07.2]} 34. h5 {[%clk 0:01:44.5]} 34...
Qxh5+ {[%clk 0:00:06.2]} 35. Rh3 {[%clk 0:01:44]} 35... Qg6 {[%clk 0:00:06]} 36.
Qe4 {[%clk 0:01:43.7]} 36... Qxe4 {[%clk 0:00:05.1]} 37. dxe4 {[%clk 0:01:44.6]}
37... Re8 {[%clk 0:00:05.5]} 38. Re3 {[%clk 0:01:43.6]} 38... Re5 {[%clk
0:00:05.1]} 39. Re1 {[%clk 0:01:41.9]} 39... g6 {[%clk 0:00:04.7]} 40. Kg3
{[%clk 0:01:41.4]} 40... Kg7 {[%clk 0:00:04.7]} 41. Kf3 {[%clk 0:01:41.5]} 41...
Re6 {[%clk 0:00:04]} 42. Bf4 {[%clk 0:01:41.6]} 42... f6 {[%clk 0:00:03.4]} 43.
Rd1 {[%clk 0:01:41.5]} 43... fxg5 {[%clk 0:00:02.9]} 44. Bxg5 {[%clk 0:01:42.4]}
44... h6 {[%clk 0:00:02.6]} 45. Bf4 {[%clk 0:01:42.6]} 45... g5 {[%clk
0:00:02.6]} 46. Bxd6 {[%clk 0:01:42.8]} 46... Rf6+ {[%clk 0:00:02.7]} 47. Kg4
{[%clk 0:01:41.6]} 47... Rf2 {[%clk 0:00:02.4]} 48. Be5+ {[%clk 0:01:40.6]}
48... Kf7 {[%clk 0:00:02.1]} 49. Rd6 {[%clk 0:01:39]} 49... Rg2+ {[%clk
0:00:01.7]} 50. Kf3 {[%clk 0:01:38.4]} 50... Rc2 {[%clk 0:00:01.4]} 51. Rxh6
{[%clk 0:01:38]} 1-0